fUST/lending_fUST_20241120
["ID","MTS","AMOUNT","RATE_DAILY","PERIOD"]
[342703362,1732053056401,-500.0,0.00024109,7]
[342703364,1732053056410,-500.0,0.00024109,7]
[342703366,1732053056420,-500.0,0.00024109,7]
[342703368,1732053056430,-718.03,0.00024109,7]
[342703370,1732053056439,-500.0,0.00024109,7]
[342703372,1732053056449,-500.0,0.00024109,7]
[342703374,1732053056459,-500.0,0.00024109,7]
[342703376,1732053056469,-571.85074108,0.00024109,7]
[342703378,1732053056479,-772.0,0.00024109,7]
[342703380,1732053056488,-500.0,0.00024109,7]
[342703382,1732053056498,-500.0,0.00024109,7]
[342703384,1732053056507,-500.0,0.00024109,7]
[342703386,1732053056516,-500.0,0.00024109,7]
[342703388,1732053056526,-513.86671143,0.00024109,7]
[342703390,1732053056536,-584.93,0.00024109,7]
[342703392,1732053056545,-500.0,0.00024109,7]
[342703394,1732053056555,-500.0,0.00024109,7]
[342703397,1732053056569,-500.0,0.00024109,7]
[342703399,1732053056578,-500.0,0.00024109,7]
[342703400,1732053056589,-500.0,0.00024109,7]
[342703403,1732053056598,-500.0,0.00024109,7]
[342703404,1732053056607,-544.56,0.00024109,7]
[342703407,1732053056617,-500.0,0.00024109,7]
[342703408,1732053056626,-681.78,0.00024109,7]
[342703411,1732053056636,-500.0,0.00024109,7]
[342703413,1732053056645,-151.0,0.00024109,7]
[342703415,1732053056654,-500.0,0.00024109,7]
[342703417,1732053056664,-500.0,0.00024109,7]
[342703419,1732053056673,-500.0,0.00024109,7]
[342703421,1732053056682,-500.0,0.00024109,7]
[342703423,1732053056692,-271.555443,0.00024109,7]
[342703425,1732053056701,-500.0,0.00024109,7]
[342703427,1732053056710,-271.555443,0.00024109,7]
[342703429,1732053056720,-500.0,0.00024109,7]
[342703431,1732053056730,-629.534209,0.00024109,7]
[342703433,1732053056739,-500.0,0.00024109,7]
[342703435,1732053056749,-500.0,0.00024109,7]
[342703437,1732053056759,-629.534209,0.00024109,7]
[342703446,1732053056832,-500.0,0.00024109,7]
[342703448,1732053056842,-500.0,0.00024109,7]
[342703450,1732053056852,-500.0,0.00024109,7]
[342703452,1732053056862,-500.0,0.00024109,7]
[342703454,1732053056871,-151.0,0.00024109,7]
[342703456,1732053056880,-500.0,0.00024109,7]
[342703458,1732053056890,-543.11,0.00024109,7]
[342703460,1732053056899,-500.0,0.00024109,7]
[342703462,1732053056909,-500.0,0.00024109,7]
[342703464,1732053056919,-500.0,0.00024109,7]
[342703466,1732053056929,-500.0,0.00024109,7]
[342703468,1732053056938,-500.0,0.00024109,7]
[342703470,1732053056947,-500.0,0.00024109,7]
[342703472,1732053056957,-500.0,0.00024109,7]
[342703474,1732053056966,-801.54,0.00024109,7]
[342703476,1732053056975,-500.0,0.00024109,7]
[342703478,1732053056985,-366.62,0.00024109,7]
[342703480,1732053056995,-628.19,0.00024109,7]
[342703482,1732053057004,-500.0,0.00024109,7]
[342703484,1732053057014,-500.0,0.00024109,7]
[342703486,1732053057024,-2435.62421,0.00024109,7]
[342703488,1732053057034,-2435.62421,0.00024109,7]
[342703490,1732053057043,-500.0,0.00024109,7]
[342703492,1732053057052,-500.0,0.00024109,7]
[342703494,1732053057064,-353.408902,0.00024109,7]
[342703496,1732053057074,-593.36,0.00024109,7]
[342703498,1732053057083,-353.408902,0.00024109,7]
[342703500,1732053057093,-826.57,0.00024109,7]
[342703502,1732053057102,-500.0,0.00024109,7]
[342703504,1732053057112,-610.61107102,0.00024109,7]
[342703506,1732053057122,-540.65,0.00024109,7]
[342703508,1732053057132,-500.0,0.00024109,7]
[342703510,1732053057142,-500.0,0.00024109,7]
[342703512,1732053057151,-651.22,0.00024109,7]
[342703514,1732053057161,-583.47,0.00024109,7]
[342703516,1732053057171,-833.312861,0.00024109,7]
[342703518,1732053057180,-833.312861,0.00024109,7]
[342703520,1732053057190,-551.438512,0.00024109,7]
[342703522,1732053057199,-500.0,0.00024109,7]
[342703524,1732053057209,-500.0,0.00024109,7]
[342703526,1732053057218,-551.438512,0.00024109,7]
[342703528,1732053057228,-500.0,0.00024109,7]
[342703530,1732053057237,-500.0,0.00024109,7]
[342703532,1732053057246,-500.0,0.00024109,7]
[342703534,1732053057255,-12500.46,0.00024109,7]
[342703536,1732053057268,-1568.28,0.00024109,7]
[342703538,1732053057277,-500.0,0.00024109,7]
[342703540,1732053057286,-777.01,0.00024109,7]
[342703542,1732053057296,-6550.16,0.00024109,7]
[342703544,1732053057306,-1076.51,0.00024109,7]
[342703546,1732053057318,-500.0,0.00024109,7]
[342703548,1732053057327,-288.549468,0.00024109,7]
[342703550,1732053057339,-288.549468,0.00024109,7]
[342703552,1732053057348,-1659.74,0.00024109,7]
[342703554,1732053057357,-500.0,0.00024109,7]
[342703556,1732053057367,-500.0,0.00024109,7]
[342703558,1732053057376,-949.395704,0.00024109,7]
[342703560,1732053057386,-266.423799,0.00024109,7]
[342703562,1732053057395,-500.0,0.00024109,7]
[342703564,1732053057405,-500.0,0.00024109,7]
[342703566,1732053057420,-949.395704,0.00024109,7]
[342703568,1732053057432,-266.423799,0.00024109,7]
[342703570,1732053057443,-500.0,0.00024109,7]
[342703572,1732053057453,-612.21,0.00024109,7]
[342703574,1732053057463,-500.0,0.00024109,7]
[342703576,1732053057472,-563.73,0.00024109,7]
[342703578,1732053057483,-500.0,0.00024109,7]
[342703580,1732053057492,-500.0,0.00024109,7]
[342703582,1732053057503,-500.0,0.00024109,7]
[342703584,1732053057512,-313.765208,0.00024109,7]
[342703586,1732053057521,-597.43,0.00024109,7]
[342703588,1732053057537,-500.0,0.00024109,7]
[342703590,1732053057556,-313.765208,0.00024109,7]
[342703592,1732053057567,-500.0,0.00024109,7]
[342703594,1732053057577,-500.0,0.00024109,7]
[342703596,1732053057586,-651.28,0.00024109,7]
[342703598,1732053057595,-500.0,0.00024109,7]
[342703600,1732053057604,-151.0,0.00024109,7]
[342703602,1732053057614,-151.0,0.00024109,7]
[342703604,1732053057623,-500.0,0.00024109,7]
[342703606,1732053057632,-500.0,0.00024109,7]
[342703608,1732053057641,-154.351312,0.00024109,7]
[342703610,1732053057651,-500.0,0.00024109,7]
[342703612,1732053057661,-500.0,0.00024109,7]
[342703614,1732053057671,-497.28888315,0.00024109,7]
[342703615,1732053057681,-500.0,0.00024109,7]
[342703616,1732053057692,-646.08,0.00024109,7]
[342703617,1732053057701,-880.58,0.00024109,7]
[342703618,1732053057710,-500.0,0.00024109,7]
[342703619,1732053057719,-524.52,0.00024109,7]
[342703620,1732053057728,-4172.35,0.00024109,7]
[342703621,1732053057738,-558.47,0.00024109,7]
[342703622,1732053057748,-500.0,0.00024109,7]
[342703623,1732053057758,-810.46,0.00024109,7]
[342703625,1732053057768,-500.0,0.00024109,7]
[342703626,1732053057778,-500.0,0.00024109,7]
[342703628,1732053057788,-225.2892,0.00024109,7]
[342703630,1732053057798,-290.233958,0.00024109,7]
[342703632,1732053057808,-225.2892,0.00024109,7]
[342703634,1732053057820,-500.0,0.00024109,7]
[342703637,1732053057830,-631.33,0.00024109,7]
[342703639,1732053057840,-4034.74,0.00024109,7]
[342703641,1732053057850,-1883.82,0.00024109,7]
[342703643,1732053057860,-500.0,0.00024109,7]
[342703645,1732053057870,-500.0,0.00024109,7]
[342703647,1732053057879,-864.59,0.00024109,7]
[342703649,1732053057889,-308.73,0.00024109,7]
[342703651,1732053057899,-500.0,0.00024109,7]
[342703653,1732053057908,-196.652764,0.00024109,7]
[342703655,1732053057918,-1666.75,0.00024109,7]
[342703657,1732053057927,-196.652764,0.00024109,7]
[342703659,1732053057938,-500.0,0.00024109,7]
[342703661,1732053057948,-346.733515,0.00024109,7]
[342703663,1732053057957,-577.48145084,0.00024109,7]
[342703665,1732053057967,-500.0,0.00024109,7]
[342703667,1732053057976,-346.733515,0.00024109,7]
[342703669,1732053057985,-4593.05,0.00024109,7]
[342703671,1732053057995,-500.0,0.00024109,7]
[342703673,1732053058004,-545.89,0.00024109,7]
[342703675,1732053058013,-511.68763058,0.00024109,7]
[342703677,1732053058023,-500.0,0.00024109,7]
[342703679,1732053058033,-2043.15,0.00024109,7]
[342703681,1732053058044,-500.0,0.00024109,7]
[342703683,1732053058054,-572.88,0.00024109,7]
[342703685,1732053058064,-500.0,0.00024109,7]
[342703687,1732053058074,-500.0,0.00024109,7]
[342703689,1732053058084,-1257.15,0.00024109,7]
[342703691,1732053058093,-500.0,0.00024109,7]
[342703693,1732053058103,-631.86223803,0.00024164,2]
[342703695,1732053058112,-204.0,0.00024164,2]
[342703697,1732053058122,-500.0,0.00024209,2]
[342703699,1732053058131,-631.86223803,0.00024274,2]
[342703701,1732053058142,-500.0,0.00024383,2]
[342703703,1732053058151,-192.25698602,0.00024383,7]
[342703705,1732053058161,-500.0,0.00024383,7]
[342703708,1732053058172,-500.0,0.00024383,7]
[342703709,1732053058182,-500.0,0.00024383,7]
[342703711,1732053058191,-978.1,0.00024383,7]
[342703713,1732053058202,-500.0,0.00024383,7]
[342703715,1732053058211,-500.0,0.00024383,7]
[342703718,1732053058221,-500.0,0.00024383,7]
[342703720,1732053058230,-500.0,0.00024383,7]
[342703722,1732053058240,-500.0,0.00024383,7]
[342703724,1732053058249,-510.92,0.00024383,7]
[342703726,1732053058259,-500.0,0.00024383,7]
[342703728,1732053058272,-500.0,0.00024383,7]
[342703730,1732053058282,-151.0,0.00024383,7]
[342703732,1732053058291,-500.0,0.00024383,7]
[342703734,1732053058300,-500.0,0.00024383,7]
[342703736,1732053058310,-657.398812,0.00024383,7]
[342703738,1732053058321,-569.3,0.00024383,7]
[342703740,1732053058330,-521.17237936,0.00024383,7]
[342703742,1732053058343,-548.89,0.00024383,7]
[342703744,1732053058353,-500.0,0.00024383,7]
[342703746,1732053058363,-718.03,0.00024383,7]
[342703748,1732053058373,-500.0,0.00024383,7]
[342703750,1732053058383,-151.0,0.00024383,7]
[342703752,1732053058393,-500.0,0.00024383,7]
[342703754,1732053058402,-500.0,0.00024383,7]
[342703756,1732053058412,-772.0,0.00024383,7]
[342703758,1732053058422,-500.0,0.00024383,7]
[342703760,1732053058431,-500.0,0.00024383,7]
[342703762,1732053058441,-500.0,0.00024383,7]
[342703764,1732053058451,-500.0,0.00024383,7]
[342703766,1732053058460,-584.93,0.00024383,7]
[342703769,1732053058470,-500.0,0.00024383,7]
[342703771,1732053058480,-500.0,0.00024383,7]
[342703773,1732053058490,-500.0,0.00024383,7]
[342703775,1732053058499,-500.0,0.00024383,7]
[342703777,1732053058509,-153.69516483,0.00024383,7]
[342703779,1732053058518,-500.0,0.00024383,7]
[342703781,1732053058528,-544.56,0.00024383,7]
[342703783,1732053058538,-500.0,0.00024383,7]
[342703785,1732053058547,-681.78,0.00024383,7]
[342703786,1732053058556,-175.37,0.00024383,7]
[342703788,1732053058567,-500.0,0.00024383,7]
[342703791,1732053058577,-500.0,0.00024383,7]
[342703792,1732053058589,-286.31579289,0.00024383,7]
[342703794,1732053058598,-500.0,0.00024383,7]
[342703797,1732053058608,-500.0,0.00024383,7]
[342703799,1732053058618,-500.0,0.00024383,7]
[342703801,1732053058627,-500.0,0.00024383,7]
[342703803,1732053058636,-500.0,0.00024383,7]
[342703805,1732053058646,-500.0,0.00024383,7]
[342703807,1732053058655,-500.0,0.00024383,7]
[342703809,1732053058664,-504.0313977,0.00024383,7]
[342703811,1732053058674,-500.0,0.00024383,7]
[342703813,1732053058683,-500.0,0.00024383,7]
[342703815,1732053058692,-543.11,0.00024383,7]
[342703817,1732053058703,-500.0,0.00024383,7]
[342703819,1732053058712,-580.94,0.00024383,7]
[342703821,1732053058723,-500.0,0.00024383,7]
[342703823,1732053058732,-500.0,0.00024383,7]
[342703825,1732053058742,-500.0,0.00024383,7]
[342703827,1732053058752,-500.0,0.00024383,7]
[342703829,1732053058761,-500.0,0.00024383,7]
[342703831,1732053058770,-801.54,0.00024383,7]
[342703833,1732053058780,-500.0,0.00024383,7]
[342703835,1732053058789,-628.19,0.00024383,7]
[342703837,1732053058798,-500.0,0.00024383,7]
[342703839,1732053058808,-390.23192032,0.00024383,7]
[342703841,1732053058819,-500.0,0.00024383,7]
[342703843,1732053058828,-500.0,0.00024383,7]
[342703845,1732053058838,-593.36,0.00024383,7]
[342703847,1732053058847,-826.57,0.00024383,7]
[342703849,1732053058857,-500.0,0.00024383,7]
[342703851,1732053058866,-540.65,0.00024383,7]
[342703853,1732053058876,-500.0,0.00024383,7]
[342703855,1732053058886,-500.0,0.00024383,7]
[342703857,1732053058896,-651.22,0.00024383,7]
[342703859,1732053058905,-500.0,0.00024383,7]
[342703861,1732053058915,-500.0,0.00024383,7]
[342703863,1732053058924,-500.0,0.00024383,7]
[342703865,1732053058933,-443.3553253,0.00024383,7]
[342703877,1732053059037,-500.0,0.00024383,7]
[342703880,1732053059047,-12500.46,0.00024383,7]
[342703882,1732053059058,-1568.28,0.00024383,7]
[342703884,1732053059068,-777.01,0.00024383,7]
[342703886,1732053059078,-500.0,0.00024383,7]
[342703888,1732053059088,-6550.16,0.00024383,7]
[342703889,1732053059098,-1076.51,0.00024383,7]
[342703892,1732053059107,-500.0,0.00024383,7]
[342703894,1732053059116,-1659.74,0.00024383,7]
[342703896,1732053059126,-500.0,0.00024383,7]
[342703898,1732053059136,-500.0,0.00024383,7]
[342703900,1732053059145,-500.0,0.00024383,7]
[342703902,1732053059155,-500.0,0.00024383,7]
[342703904,1732053059164,-500.0,0.00024383,7]
[342703906,1732053059174,-612.21,0.00024383,7]
[342703908,1732053059183,-500.0,0.00024383,7]
[342703910,1732053059192,-563.73,0.00024383,7]
[342703912,1732053059201,-500.0,0.00024383,7]
[342703914,1732053059210,-500.0,0.00024383,7]
[342703916,1732053059220,-500.0,0.00024383,7]
[342703918,1732053059229,-597.43,0.00024383,7]
[342703920,1732053059239,-500.0,0.00024383,7]
[342703921,1732053059248,-500.0,0.00024383,7]
[342703924,1732053059258,-500.0,0.00024383,7]
[342703926,1732053059272,-651.28,0.00024383,7]
[342703928,1732053059282,-189.39,0.00024383,7]
[342703930,1732053059291,-500.0,0.00024383,7]
[342703932,1732053059301,-500.0,0.00024383,7]
[342703934,1732053059311,-500.0,0.00024383,7]
[342703936,1732053059321,-500.0,0.00024383,7]
[342703938,1732053059331,-500.0,0.00024383,7]
[342703940,1732053059342,-646.08,0.00024383,7]
[342703942,1732053059351,-880.58,0.00024383,7]
[342703943,1732053059362,-500.0,0.00024383,7]
[342703946,1732053059372,-524.52,0.00024383,7]
[342703948,1732053059382,-4172.35,0.00024383,7]
[342703950,1732053059392,-558.47,0.00024383,7]
[342703952,1732053059402,-500.0,0.00024383,7]
[342703954,1732053059412,-810.46,0.00024383,7]
[342703956,1732053059421,-500.0,0.00024383,7]
[342703958,1732053059431,-500.0,0.00024383,7]
[342703960,1732053059441,-500.0,0.00024383,7]
[342703962,1732053059451,-631.33,0.00024383,7]
[342703964,1732053059460,-1883.82,0.00024383,7]
[342703966,1732053059470,-4034.74,0.00024383,7]
[342703968,1732053059480,-500.0,0.00024383,7]
[342703970,1732053059489,-500.0,0.00024383,7]
[342703972,1732053059498,-864.59,0.00024383,7]
[342703974,1732053059508,-370.10787964,0.00024383,7]
[342703976,1732053059517,-1666.75,0.00024383,7]
[342703978,1732053059527,-466.63,0.00024383,7]
[342703980,1732053059536,-241.52497712,0.00024383,7]
[342703983,1732053059545,-4593.05,0.00024383,7]
[342703984,1732053059554,-500.0,0.00024383,7]
[342703986,1732053059563,-545.89,0.00024383,7]
[342703988,1732053059572,-500.0,0.00024383,7]
[342703990,1732053059582,-2043.15,0.00024383,7]
[342703992,1732053059593,-500.0,0.00024383,7]
[342703994,1732053059602,-500.0,0.00024383,7]
[342703996,1732053059612,-418.41,0.00024383,7]
[342703998,1732053059622,-1257.15,0.00024383,7]
[342704001,1732053059631,-500.0,0.00024383,7]
[342704003,1732053059641,-631.86223803,0.00024384,2]
[342704005,1732053059650,-530.0,0.00024527,2]
[342704007,1732053059660,-1110.0,0.00024527,2]
[342704008,1732053059669,-2384.0,0.00024527,2]
[342704011,1732053059680,-500.0,0.00024657,2]
[342704013,1732053059689,-3291.25,0.00024657,2]
[342704015,1732053059699,-3291.25,0.00024657,2]
[342704017,1732053059709,-3291.25,0.00024657,2]
[342704019,1732053059719,-3291.25,0.00024657,2]
[342704021,1732053059730,-3291.25,0.00024657,2]
[342704023,1732053059740,-3291.25,0.00024657,2]
[342704025,1732053059749,-3291.25,0.00024657,2]
[342704027,1732053059761,-3291.25,0.00024657,2]
[342704029,1732053059771,-3291.25,0.00024657,2]
[342704031,1732053059781,-3291.25,0.00024657,2]
[342704033,1732053059790,-3291.25,0.00024657,2]
[342704035,1732053059800,-3291.25,0.00024657,2]
[342704037,1732053059810,-3291.25,0.00024657,2]
[342704040,1732053059823,-3291.25,0.00024657,2]
[342704042,1732053059833,-3291.25,0.00024657,2]
[342704044,1732053059842,-3291.25,0.00024657,2]
[342704046,1732053059852,-3291.25,0.00024657,2]
[342704047,1732053059861,-3291.25,0.00024657,2]
[342704050,1732053059871,-3291.25,0.00024657,2]
[342704052,1732053059880,-3291.25,0.00024657,2]
[342704053,1732053059889,-3291.25,0.00024657,2]
[342704055,1732053059899,-3291.25,0.00024657,2]
[342704058,1732053059908,-3291.25,0.00024657,2]
[342704060,1732053059918,-3291.32779157,0.00024657,2]
[342704062,1732053059928,-500.0,0.00024657,7]
[342704064,1732053059939,-500.0,0.00024657,7]
[342704065,1732053059948,-339.63393686,0.00024657,7]
[342704066,1732053059958,-978.1,0.00024657,7]
[342704067,1732053059968,-500.0,0.00024657,7]
[342704068,1732053059978,-500.0,0.00024657,7]
[342704069,1732053059987,-500.0,0.00024657,7]
[342704070,1732053059996,-500.0,0.00024657,7]
[342704071,1732053060006,-500.0,0.00024657,7]
[342704072,1732053060016,-510.92,0.00024657,7]
[342704073,1732053060026,-500.0,0.00024657,7]
[342704074,1732053060036,-500.0,0.00024657,7]
[342704075,1732053060046,-151.0,0.00024657,7]
[342704077,1732053060056,-539.73,0.00024657,7]
[342704079,1732053060067,-395.24210641,0.00024657,7]
[342704081,1732053060077,-657.398812,0.00024657,7]
[342704083,1732053060086,-657.398812,0.00024657,7]
[342704085,1732053060096,-569.3,0.00024657,7]
[342704087,1732053060107,-500.0,0.00024657,7]
[342704089,1732053060118,-718.03,0.00024657,7]
[342704091,1732053060127,-500.0,0.00024657,7]
[342704093,1732053060137,-151.0,0.00024657,7]
[342704095,1732053060147,-500.0,0.00024657,7]
[342704097,1732053060157,-500.0,0.00024657,7]
[342704099,1732053060167,-772.0,0.00024657,7]
[342704101,1732053060176,-500.0,0.00024657,7]
[342704103,1732053060186,-492.15518121,0.00024657,7]
[342704105,1732053060195,-500.0,0.00024657,7]
[342704107,1732053060204,-500.0,0.00024657,7]
[342704109,1732053060213,-584.93,0.00024657,7]
[342704111,1732053060223,-500.0,0.00024657,7]
[342704113,1732053060233,-500.0,0.00024657,7]
[342704115,1732053060242,-500.0,0.00024657,7]
[342704117,1732053060251,-500.0,0.00024657,7]
[342704119,1732053060264,-500.0,0.00024657,7]
[342704121,1732053060274,-544.56,0.00024657,7]
[342704123,1732053060283,-200.0,0.00024657,2]
[342704125,1732053060293,-500.0,0.00024657,7]
[342704127,1732053060303,-681.78,0.00024657,7]
[342704129,1732053060312,-151.0,0.00024657,7]
[342704131,1732053060324,-500.0,0.00024657,7]
[342704133,1732053060335,-500.0,0.00024657,3]
[342704135,1732053060351,-500.0,0.00024657,7]
[342704137,1732053060366,-500.0,0.00024657,7]
[342704139,1732053060375,-271.555443,0.00024657,7]
[342704141,1732053060385,-500.0,0.00024657,7]
[342704143,1732053060394,-271.555443,0.00024657,7]
[342704145,1732053060404,-500.0,0.00024657,7]
[342704147,1732053060413,-629.534209,0.00024657,7]
[342704149,1732053060423,-500.0,0.00024657,7]
[342704151,1732053060432,-500.0,0.00024657,7]
[342704153,1732053060442,-629.534209,0.00024657,7]
[342704155,1732053060451,-500.0,0.00024657,7]
[342704157,1732053060461,-500.0,0.00024657,7]
[342704159,1732053060471,-500.0,0.00024657,7]
[342704161,1732053060481,-151.0,0.00024657,7]
[342704163,1732053060490,-500.0,0.00024657,7]
[342704165,1732053060500,-543.11,0.00024657,7]
[342704167,1732053060509,-377.33,0.00024657,7]
[342704169,1732053060519,-500.0,0.00024657,7]
[342704171,1732053060528,-500.0,0.00024657,7]
[342704173,1732053060537,-500.0,0.00024657,7]
[342704175,1732053060547,-500.0,0.00024657,7]
[342704177,1732053060557,-500.0,0.00024657,7]
[342704179,1732053060568,-801.54,0.00024657,7]
[342704181,1732053060578,-500.0,0.00024657,7]
[342704183,1732053060587,-628.19,0.00024657,7]
[342704185,1732053060597,-500.0,0.00024657,7]
[342704187,1732053060606,-2435.62421,0.00024657,7]
[342704189,1732053060616,-2435.62421,0.00024657,7]
[342704191,1732053060625,-500.0,0.00024657,7]
[342704193,1732053060634,-500.0,0.00024657,7]
[342704195,1732053060644,-353.408902,0.00024657,7]
[342704197,1732053060653,-593.36,0.00024657,7]
[342704199,1732053060663,-353.408902,0.00024657,7]
[342704201,1732053060672,-826.57,0.00024657,7]
[342704203,1732053060682,-500.0,0.00024657,7]
[342704205,1732053060692,-540.65,0.00024657,7]
[342704207,1732053060702,-500.0,0.00024657,7]
[342704209,1732053060711,-500.0,0.00024657,7]
[342704211,1732053060721,-651.22,0.00024657,7]
[342704213,1732053060731,-833.312861,0.00024657,7]
[342704215,1732053060740,-833.312861,0.00024657,7]
[342704217,1732053060750,-551.438512,0.00024657,7]
[342704219,1732053060760,-252.49296615,0.00024657,7]
[342704221,1732053060770,-500.0,0.00024657,7]
[342704223,1732053060780,-551.438512,0.00024657,7]
[342704225,1732053060789,-561.54,0.00024657,7]
[342704227,1732053060798,-500.0,0.00024657,7]
[342704229,1732053060808,-12500.46,0.00024657,7]
[342704231,1732053060817,-1568.28,0.00024657,7]
[342704233,1732053060826,-777.01,0.00024657,7]
[342704235,1732053060836,-181.92,0.00024657,7]
[342704237,1732053060845,-6550.16,0.00024657,7]
[342704239,1732053060855,-1076.51,0.00024657,7]
[342704241,1732053060864,-500.0,0.00024657,7]
[342704243,1732053060874,-288.549468,0.00024657,7]
[342704245,1732053060883,-288.549468,0.00024657,7]
[342704247,1732053060893,-1659.74,0.00024657,7]
[342704249,1732053060902,-500.0,0.00024657,7]
[342704251,1732053060911,-500.0,0.00024657,7]
[342704253,1732053060921,-949.395704,0.00024657,7]
[342704255,1732053060932,-266.423799,0.00024657,7]
[342704257,1732053060942,-500.0,0.00024657,7]
[342704259,1732053060951,-500.0,0.00024657,7]
[342704261,1732053060960,-949.395704,0.00024657,7]
[342704263,1732053060969,-266.423799,0.00024657,7]
[342704265,1732053060980,-500.0,0.00024657,7]
[342704267,1732053060989,-612.21,0.00024657,7]
[342704269,1732053060999,-500.0,0.00024657,7]
[342704271,1732053061008,-563.73,0.00024657,7]
[342704273,1732053061018,-500.0,0.00024657,7]
[342704275,1732053061028,-500.0,0.00024657,7]
[342704277,1732053061037,-500.0,0.00024657,7]
[342704279,1732053061047,-313.765208,0.00024657,7]
[342704281,1732053061056,-597.43,0.00024657,7]
[342704283,1732053061065,-500.0,0.00024657,7]
[342704285,1732053061076,-313.765208,0.00024657,7]
[342704287,1732053061086,-500.0,0.00024657,7]
[342704289,1732053061095,-500.0,0.00024657,7]
[342704291,1732053061104,-651.28,0.00024657,7]
[342704293,1732053061113,-151.0,0.00024657,7]
[342704295,1732053061122,-151.0,0.00024657,7]
[342704297,1732053061131,-500.0,0.00024657,7]
[342704299,1732053061141,-500.0,0.00024657,7]
[342704301,1732053061150,-500.0,0.00024657,7]
[342704303,1732053061160,-500.0,0.00024657,7]
[342704305,1732053061170,-500.0,0.00024657,7]
[342704307,1732053061179,-646.08,0.00024657,7]
[342704309,1732053061189,-500.0,0.00024657,2]
[342704311,1732053061198,-500.0,0.00024657,2]
[342704313,1732053061208,-500.0,0.00024657,2]
[342704315,1732053061217,-500.0,0.00024657,2]
[342704317,1732053061226,-500.0,0.00024657,2]
[342704319,1732053061235,-325.68141161,0.00024657,2]
[342704321,1732053061245,-880.58,0.00024657,7]
[342704323,1732053061254,-500.0,0.00024657,7]
[342704325,1732053061263,-524.52,0.00024657,7]
[342704327,1732053061278,-4172.35,0.00024657,7]
[342704329,1732053061287,-558.47,0.00024657,7]
[342704331,1732053061297,-500.0,0.00024657,7]
[342704333,1732053061306,-810.46,0.00024657,7]
[342704336,1732053061319,-500.0,0.00024657,7]
[342704338,1732053061328,-500.0,0.00024657,7]
[342704340,1732053061338,-225.2892,0.00024657,7]
[342704342,1732053061348,-225.2892,0.00024657,7]
[342704344,1732053061359,-500.0,0.00024657,7]
[342704346,1732053061368,-631.33,0.00024657,7]
[342704348,1732053061378,-1883.82,0.00024657,7]
[342704350,1732053061387,-4034.74,0.00024657,7]
[342704352,1732053061397,-500.0,0.00024657,7]
[342704354,1732053061407,-500.0,0.00024657,7]
[342704356,1732053061416,-864.59,0.00024657,7]
[342704358,1732053061426,-196.652764,0.00024657,7]
[342704370,1732053061533,-196.652764,0.00024657,7]
[342704372,1732053061543,-1666.75,0.00024657,7]
[342704374,1732053061553,-346.733515,0.00024657,7]